[Event "Titled Tuesday Blitz October 18 Late 2022"]
[White "P., Komal Kishore"]
[Black "Jimenez Fernandez, Rebeca"]
[WhiteFideId "5016703"]
[BlackFideId "32070934"]
[WhiteElo "2102"]
[BlackElo "1946"]
[Result "0-1"]
[Round "11"]
[TimeControl "180+1"]
[Date "2022.10.19"]
[WhiteClock "0:00:06"]
[BlackClock "0:00:17"]

1. e4 {[%clk 0:02:57]}  c5 {[%clk 0:02:58]} 2. Nf3 {[%clk 0:02:57]}  Nc6 {[%clk 0:02:58]} 3. Bb5 {[%clk 0:02:57]}  g6 {[%clk 0:02:57]} 4. O-O {[%clk 0:02:57]}  Bg7 {[%clk 0:02:56]} 5. c3 {[%clk 0:02:58]}  Nf6 {[%clk 0:02:57]} 6. e5 {[%clk 0:02:58]}  Nd5 {[%clk 0:02:57]} 7. d4 {[%clk 0:02:59]}  cxd4 {[%clk 0:02:57]} 8. cxd4 {[%clk 0:02:59]}  O-O {[%clk 0:02:55]} 9. Nc3 {[%clk 0:02:59]}  Nc7 {[%clk 0:02:55]} 10. Be2 {[%clk 0:02:58]}  d6 {[%clk 0:02:49]} 11. exd6 {[%clk 0:02:57]}  Qxd6 {[%clk 0:02:50]} 12. Be3 {[%clk 0:02:54]}  Bg4 {[%clk 0:02:46]} 13. h3 {[%clk 0:02:40]}  Bxf3 {[%clk 0:02:45]} 14. Bxf3 {[%clk 0:02:41]}  Nxd4 {[%clk 0:02:42]} 15. Bxb7 {[%clk 0:02:35]}  Rab8 {[%clk 0:02:43]} 16. Bxd4 {[%clk 0:02:24]}  Qxd4 {[%clk 0:02:40]} 17. Qxd4 {[%clk 0:02:15]}  Bxd4 {[%clk 0:02:41]} 18. Bf3 {[%clk 0:02:08]}  Rxb2 {[%clk 0:02:40]} 19. Rac1 {[%clk 0:02:08]}  Bxc3 {[%clk 0:02:32]} 20. Rxc3 {[%clk 0:02:08]}  Nb5 {[%clk 0:02:33]} 21. Rc5 {[%clk 0:01:57]}  Nd4 {[%clk 0:02:31]} 22. Bd5 {[%clk 0:01:56]}  e6 {[%clk 0:02:22]} 23. Bc4 {[%clk 0:01:54]}  Rc2 {[%clk 0:02:22]} 24. Rd1 {[%clk 0:01:45]}  Nf5 {[%clk 0:02:01]} 25. Rd7 {[%clk 0:01:37]}  Rb8 {[%clk 0:01:47]} 26. Rcc7 {[%clk 0:01:34]}  Nh6 {[%clk 0:01:44]} 27. g4 {[%clk 0:01:29]}  Rb1+ {[%clk 0:01:38]} 28. Kg2 {[%clk 0:01:28]}  Rbb2 {[%clk 0:01:39]} 29. Bxe6 {[%clk 0:00:34]}  Rxf2+ {[%clk 0:01:36]} 30. Kg1 {[%clk 0:00:33]}  fxe6 {[%clk 0:01:00]} 31. Rg7+ {[%clk 0:00:30]}  Kf8 {[%clk 0:01:00]} 32. Rxh7 {[%clk 0:00:30]}  Rf7 {[%clk 0:00:57]} 33. Rc8+ {[%clk 0:00:21]}  Ke7 {[%clk 0:00:57]} 34. Rxh6 {[%clk 0:00:21]}  Kf6 {[%clk 0:00:49]} 35. a4 {[%clk 0:00:13]}  Kg5 {[%clk 0:00:48]} 36. Rhh8 {[%clk 0:00:11]}  Rd7 {[%clk 0:00:44]} 37. Rhd8 {[%clk 0:00:10]}  Rxd8 {[%clk 0:00:32]} 38. Rxd8 {[%clk 0:00:10]}  Ra2 {[%clk 0:00:32]} 39. Re8 {[%clk 0:00:07]}  Rxa4 {[%clk 0:00:32]} 40. Rxe6 {[%clk 0:00:07]}  Ra2 {[%clk 0:00:22]} 41. Rc6 {[%clk 0:00:06]}  a5 {[%clk 0:00:20]} 42. Ra6 {[%clk 0:00:06]}  a4 {[%clk 0:00:19]} 43. Kh1 {[%clk 0:00:07]}  Kh4 {[%clk 0:00:17]} 44. Rxg6 {[%clk 0:00:06]}  Kg3 {[%clk 0:00:17]} 0-1


[Site "https://www.chess.com"]

[Event "Titled Tuesday Blitz October 18 Late 2022"]
[White "Papasimakopoulos, Alexandros"]
[Black "Rosen, Eric"]
[WhiteFideId "4244125"]
[BlackFideId "2032562"]
[WhiteElo "2357"]
[BlackElo "2362"]
[Result "1-0"]
[Round "11"]
[TimeControl "180+1"]
[Date "2022.10.18"]
[WhiteClock "0:00:15"]
[BlackClock "0:00:02"]

1. d4 {[%clk 0:03:00]}  d5 {[%clk 0:03:00]} 2. c4 {[%clk 0:02:59]}  e6 {[%clk 0:02:59]} 3. Nc3 {[%clk 0:02:59]}  Nf6 {[%clk 0:03:00]} 4. cxd5 {[%clk 0:02:59]}  exd5 {[%clk 0:03:01]} 5. Bg5 {[%clk 0:02:59]}  c6 {[%clk 0:03:01]} 6. Qc2 {[%clk 0:02:58]}  Bd6 {[%clk 0:03:00]} 7. e3 {[%clk 0:02:58]}  O-O {[%clk 0:02:59]} 8. Bd3 {[%clk 0:02:59]}  h6 {[%clk 0:03:00]} 9. Bh4 {[%clk 0:02:59]}  Re8 {[%clk 0:03:00]} 10. Nge2 {[%clk 0:02:59]}  a5 {[%clk 0:03:00]} 11. Bg3 {[%clk 0:02:58]}  Na6 {[%clk 0:03:00]} 12. a3 {[%clk 0:02:59]}  Nc7 {[%clk 0:03:00]} 13. O-O {[%clk 0:02:59]}  Ne6 {[%clk 0:03:00]} 14. Rab1 {[%clk 0:02:58]}  Ng5 {[%clk 0:02:56]} 15. b4 {[%clk 0:02:58]}  b5 {[%clk 0:02:47]} 16. Bxd6 {[%clk 0:02:43]}  Qxd6 {[%clk 0:02:47]} 17. Bxb5 {[%clk 0:02:41]}  Ng4 {[%clk 0:02:28]} 18. Nf4 {[%clk 0:02:25]}  axb4 {[%clk 0:02:01]} 19. axb4 {[%clk 0:02:24]}  cxb5 {[%clk 0:02:01]} 20. Nxb5 {[%clk 0:02:24]}  Qf6 {[%clk 0:01:58]} 21. Nc7 {[%clk 0:02:18]}  Bf5 {[%clk 0:01:52]} 22. Nxe8 {[%clk 0:02:18]}  Rxe8 {[%clk 0:01:49]} 23. Qe2 {[%clk 0:01:59]}  Bxb1 {[%clk 0:01:19]} 24. Qxg4 {[%clk 0:01:59]}  Be4 {[%clk 0:01:15]} 25. Qd1 {[%clk 0:01:52]}  Ne6 {[%clk 0:01:09]} 26. Ne2 {[%clk 0:01:49]}  Qg6 {[%clk 0:01:05]} 27. f3 {[%clk 0:01:40]}  Bd3 {[%clk 0:01:01]} 28. Re1 {[%clk 0:01:39]}  Bc4 {[%clk 0:00:59]} 29. Nc3 {[%clk 0:01:36]}  Rb8 {[%clk 0:00:58]} 30. b5 {[%clk 0:01:30]}  h5 {[%clk 0:00:53]} 31. Qd2 {[%clk 0:01:29]}  h4 {[%clk 0:00:49]} 32. h3 {[%clk 0:01:29]}  Ng5 {[%clk 0:00:48]} 33. Kh1 {[%clk 0:01:24]}  Nh7 {[%clk 0:00:44]} 34. e4 {[%clk 0:01:20]}  Nf6 {[%clk 0:00:41]} 35. Qf4 {[%clk 0:01:16]}  Ra8 {[%clk 0:00:23]} 36. Qxh4 {[%clk 0:01:10]}  Ra3 {[%clk 0:00:19]} 37. Rc1 {[%clk 0:01:06]}  dxe4 {[%clk 0:00:19]} 38. fxe4 {[%clk 0:01:05]}  Rb3 {[%clk 0:00:19]} 39. e5 {[%clk 0:01:02]}  Rb2 {[%clk 0:00:13]} 40. Rg1 {[%clk 0:00:58]}  Rc2 {[%clk 0:00:09]} 41. exf6 {[%clk 0:00:49]}  Rxc3 {[%clk 0:00:09]} 42. fxg7 {[%clk 0:00:48]}  Kxg7 {[%clk 0:00:08]} 43. Qe1 {[%clk 0:00:38]}  Rd3 {[%clk 0:00:07]} 44. Qe5+ {[%clk 0:00:29]}  f6 {[%clk 0:00:07]} 45. Qc7+ {[%clk 0:00:26]}  Bf7 {[%clk 0:00:07]} 46. b6 {[%clk 0:00:25]}  Qe4 {[%clk 0:00:08]} 47. Kh2 {[%clk 0:00:22]}  Rb3 {[%clk 0:00:07]} 48. d5 {[%clk 0:00:17]}  Rb2 {[%clk 0:00:06]} 49. d6 {[%clk 0:00:16]}  Qe5+ {[%clk 0:00:06]} 50. Kh1 {[%clk 0:00:17]}  Qe4 {[%clk 0:00:02]} 51. d7 {[%clk 0:00:17]}  Be6 {[%clk 0:00:01]} 52. d8=Q+ {[%clk 0:00:16]}  Kg6 {[%clk 0:00:02]} 53. Qg3+ {[%clk 0:00:15]} 1-0


[Site "https://www.chess.com"]

[Event "Titled Tuesday Blitz October 18 Late 2022"]
[White "Pavlidou, Ekaterini"]
[Black "Arkell, Keith C"]
[WhiteFideId "4213262"]
[BlackFideId "400270"]
[WhiteElo "2125"]
[BlackElo "2336"]
[Result "0-1"]
[Round "11"]
[TimeControl "180+1"]
[Date "2022.10.19"]
[WhiteClock "0:00:24"]
[BlackClock "0:01:34"]

1. d4 {[%clk 0:02:59]}  e6 {[%clk 0:02:56]} 2. c4 {[%clk 0:02:59]}  Bb4+ {[%clk 0:02:56]} 3. Bd2 {[%clk 0:02:58]}  Bxd2+ {[%clk 0:02:56]} 4. Nxd2 {[%clk 0:02:59]}  d6 {[%clk 0:02:55]} 5. e4 {[%clk 0:02:59]}  Qe7 {[%clk 0:02:55]} 6. f4 {[%clk 0:02:57]}  e5 {[%clk 0:02:55]} 7. fxe5 {[%clk 0:02:56]}  dxe5 {[%clk 0:02:55]} 8. d5 {[%clk 0:02:57]}  a5 {[%clk 0:02:55]} 9. Ngf3 {[%clk 0:02:57]}  Bg4 {[%clk 0:02:55]} 10. Qa4+ {[%clk 0:02:52]}  Nd7 {[%clk 0:02:54]} 11. Be2 {[%clk 0:02:49]}  Bxf3 {[%clk 0:02:54]} 12. Bxf3 {[%clk 0:02:48]}  Nf6 {[%clk 0:02:55]} 13. O-O {[%clk 0:02:48]}  O-O {[%clk 0:02:54]} 14. Qb5 {[%clk 0:02:46]}  Qb4 {[%clk 0:02:53]} 15. Nb3 {[%clk 0:02:39]}  Rfc8 {[%clk 0:02:43]} 16. Bg4 {[%clk 0:02:34]}  c6 {[%clk 0:02:42]} 17. Qxb4 {[%clk 0:02:33]}  axb4 {[%clk 0:02:41]} 18. Bxd7 {[%clk 0:02:32]}  Nxd7 {[%clk 0:02:40]} 19. d6 {[%clk 0:02:30]}  c5 {[%clk 0:02:39]} 20. Rfd1 {[%clk 0:02:28]}  Rc6 {[%clk 0:02:38]} 21. Rd5 {[%clk 0:02:19]}  f6 {[%clk 0:02:37]} 22. a4 {[%clk 0:02:17]}  bxa3 {[%clk 0:02:36]} 23. Rxa3 {[%clk 0:02:16]}  Rxa3 {[%clk 0:02:36]} 24. bxa3 {[%clk 0:02:16]}  Kf7 {[%clk 0:02:37]} 25. Nc1 {[%clk 0:02:05]}  Ke6 {[%clk 0:02:33]} 26. Ne2 {[%clk 0:02:04]}  Rxd6 {[%clk 0:02:30]} 27. Nc3 {[%clk 0:02:01]}  Rc6 {[%clk 0:02:21]} 28. Na4 {[%clk 0:01:54]}  b6 {[%clk 0:02:20]} 29. Nc3 {[%clk 0:01:53]}  Rc7 {[%clk 0:02:20]} 30. Nb5 {[%clk 0:01:53]}  Rc6 {[%clk 0:02:17]} 31. Na7 {[%clk 0:01:52]}  Rc7 {[%clk 0:02:17]} 32. Nb5 {[%clk 0:01:52]}  Rb7 {[%clk 0:02:18]} 33. g4 {[%clk 0:01:46]}  Rb8 {[%clk 0:02:17]} 34. Kf2 {[%clk 0:01:35]}  Ke7 {[%clk 0:02:17]} 35. Ke3 {[%clk 0:01:32]}  h5 {[%clk 0:02:17]} 36. h3 {[%clk 0:01:32]}  hxg4 {[%clk 0:02:17]} 37. hxg4 {[%clk 0:01:32]}  Rh8 {[%clk 0:02:17]} 38. Rd2 {[%clk 0:01:17]}  Rh3+ {[%clk 0:02:17]} 39. Ke2 {[%clk 0:01:13]}  Rg3 {[%clk 0:02:07]} 40. Kf2 {[%clk 0:01:04]}  Rb3 {[%clk 0:02:03]} 41. Kg2 {[%clk 0:00:48]}  Re3 {[%clk 0:01:59]} 42. Nd6 {[%clk 0:00:46]}  Rxa3 {[%clk 0:01:53]} 43. Nc8+ {[%clk 0:00:44]}  Ke8 {[%clk 0:01:51]} 44. Nd6+ {[%clk 0:00:42]}  Kf8 {[%clk 0:01:51]} 45. Nc8 {[%clk 0:00:40]}  Nb8 {[%clk 0:01:47]} 46. Nxb6 {[%clk 0:00:39]}  Nc6 {[%clk 0:01:46]} 47. Nd7+ {[%clk 0:00:38]}  Ke7 {[%clk 0:01:45]} 48. Nxc5 {[%clk 0:00:39]}  Nd4 {[%clk 0:01:45]} 49. Rb2 {[%clk 0:00:38]}  Rc3 {[%clk 0:01:45]} 50. Rb7+ {[%clk 0:00:35]}  Kd6 {[%clk 0:01:45]} 51. Na6 {[%clk 0:00:28]}  Rxc4 {[%clk 0:01:43]} 52. Rxg7 {[%clk 0:00:28]}  Ne6 {[%clk 0:01:37]} 53. Rf7 {[%clk 0:00:26]}  Rc2+ {[%clk 0:01:35]} 54. Kf3 {[%clk 0:00:24]}  Ng5+ {[%clk 0:01:34]} 0-1


[Site "https://www.chess.com"]

[Event "Titled Tuesday Blitz October 18 Late 2022"]
[White "Pham, Khoi"]
[Black "Thiel, Thomas"]
[WhiteFideId "1054988"]
[BlackFideId "4615964"]
[WhiteElo "2457"]
[BlackElo "2280"]
[Result "1-0"]
[Round "11"]
[TimeControl "180+1"]
[Date "2022.10.19"]
[WhiteClock "0:02:29"]
[BlackClock "0:01:54"]

1. d4 {[%clk 0:03:00]}  Nf6 {[%clk 0:02:57]} 2. c4 {[%clk 0:03:00]}  g6 {[%clk 0:02:57]} 3. Nc3 {[%clk 0:03:01]}  d5 {[%clk 0:02:57]} 4. cxd5 {[%clk 0:03:01]}  Nxd5 {[%clk 0:02:57]} 5. Na4 {[%clk 0:03:02]}  Bg7 {[%clk 0:02:55]} 6. e4 {[%clk 0:03:01]}  Nb6 {[%clk 0:02:55]} 7. Nxb6 {[%clk 0:03:00]}  axb6 {[%clk 0:02:55]} 8. Be3 {[%clk 0:03:00]}  O-O {[%clk 0:02:54]} 9. Bc4 {[%clk 0:02:59]}  c5 {[%clk 0:02:53]} 10. Ne2 {[%clk 0:02:57]}  Nc6 {[%clk 0:02:50]} 11. d5 {[%clk 0:02:53]}  Na5 {[%clk 0:02:48]} 12. Qc2 {[%clk 0:02:52]}  Bd7 {[%clk 0:02:38]} 13. Ng3 {[%clk 0:02:35]}  Nxc4 {[%clk 0:02:25]} 14. Qxc4 {[%clk 0:02:36]}  Bxb2 {[%clk 0:02:24]} 15. Rb1 {[%clk 0:02:34]}  Bg7 {[%clk 0:02:22]} 16. O-O {[%clk 0:02:33]}  Ra4 {[%clk 0:02:19]} 17. Qc2 {[%clk 0:02:31]}  f5 {[%clk 0:01:54]} 18. exf5 {[%clk 0:02:29]}  Bxf5 {[%clk 0:01:54]} 19. Nxf5 {[%clk 0:02:29]} 1-0


[Site "https://www.chess.com"]

[Event "Titled Tuesday Blitz October 18 Late 2022"]
[White "Pinheiro, Iung Alicio de O."]
[Black "Li, Ruifeng"]
[WhiteFideId "2104350"]
[BlackFideId "2061074"]
[WhiteElo "2283"]
[BlackElo "2441"]
[Result "1-0"]
[Round "11"]
[TimeControl "180+1"]
[Date "2022.10.18"]
[WhiteClock "0:00:39"]
[BlackClock "0:00:29"]

1. e4 {[%clk 0:02:58]}  d6 {[%clk 0:02:59]} 2. d4 {[%clk 0:02:58]}  Nf6 {[%clk 0:03:00]} 3. Nc3 {[%clk 0:02:58]}  Nc6 {[%clk 0:03:00]} 4. Bb5 {[%clk 0:02:52]}  a6 {[%clk 0:02:59]} 5. Bxc6+ {[%clk 0:02:52]}  bxc6 {[%clk 0:03:00]} 6. h3 {[%clk 0:02:47]}  g6 {[%clk 0:02:59]} 7. Nf3 {[%clk 0:02:47]}  Bg7 {[%clk 0:02:59]} 8. O-O {[%clk 0:02:46]}  O-O {[%clk 0:03:00]} 9. Qe2 {[%clk 0:02:42]}  a5 {[%clk 0:02:59]} 10. Rd1 {[%clk 0:02:33]}  Ba6 {[%clk 0:02:59]} 11. Qe1 {[%clk 0:02:32]}  Nd7 {[%clk 0:02:59]} 12. Bg5 {[%clk 0:02:30]}  Re8 {[%clk 0:02:21]} 13. e5 {[%clk 0:02:19]}  Nf8 {[%clk 0:02:21]} 14. Qe3 {[%clk 0:02:15]}  d5 {[%clk 0:02:08]} 15. h4 {[%clk 0:01:36]}  Ne6 {[%clk 0:02:06]} 16. Bh6 {[%clk 0:01:36]}  Bh8 {[%clk 0:02:05]} 17. h5 {[%clk 0:01:35]}  Qb8 {[%clk 0:01:54]} 18. b3 {[%clk 0:01:33]}  Rd8 {[%clk 0:01:39]} 19. g3 {[%clk 0:01:30]}  c5 {[%clk 0:01:38]} 20. hxg6 {[%clk 0:01:25]}  hxg6 {[%clk 0:01:38]} 21. dxc5 {[%clk 0:01:25]}  c6 {[%clk 0:01:38]} 22. Na4 {[%clk 0:01:21]}  Qb4 {[%clk 0:01:35]} 23. Nd4 {[%clk 0:01:12]}  Rac8 {[%clk 0:01:01]} 24. Nxe6 {[%clk 0:01:05]}  fxe6 {[%clk 0:01:01]} 25. Rd4 {[%clk 0:01:05]}  Qb8 {[%clk 0:00:58]} 26. Re1 {[%clk 0:01:03]}  Kf7 {[%clk 0:00:57]} 27. Qg5 {[%clk 0:01:01]}  Ke8 {[%clk 0:00:56]} 28. Nb6 {[%clk 0:00:58]}  Rd7 {[%clk 0:00:46]} 29. Rf4 {[%clk 0:00:56]}  Kd8 {[%clk 0:00:42]} 30. Rf8+ {[%clk 0:00:52]}  Kc7 {[%clk 0:00:43]} 31. Nxc8 {[%clk 0:00:52]}  Bxc8 {[%clk 0:00:44]} 32. Rxh8 {[%clk 0:00:52]}  Qb4 {[%clk 0:00:44]} 33. Qd2 {[%clk 0:00:45]}  Qxc5 {[%clk 0:00:40]} 34. c3 {[%clk 0:00:45]}  Ba6 {[%clk 0:00:36]} 35. Be3 {[%clk 0:00:44]}  Qb5 {[%clk 0:00:36]} 36. Qd4 {[%clk 0:00:44]}  c5 {[%clk 0:00:30]} 37. Qxc5+ {[%clk 0:00:43]}  Qxc5 {[%clk 0:00:30]} 38. Bxc5 {[%clk 0:00:44]}  Kc6 {[%clk 0:00:31]} 39. Bd4 {[%clk 0:00:44]}  Bd3 {[%clk 0:00:32]} 40. f3 {[%clk 0:00:43]}  Rb7 {[%clk 0:00:30]} 41. Kf2 {[%clk 0:00:43]}  a4 {[%clk 0:00:31]} 42. Ke3 {[%clk 0:00:42]}  Bc2 {[%clk 0:00:30]} 43. b4 {[%clk 0:00:41]}  a3 {[%clk 0:00:29]} 44. Rc8+ {[%clk 0:00:40]}  Kb5 {[%clk 0:00:29]} 45. Rc5+ {[%clk 0:00:39]} 1-0


[Site "https://www.chess.com"]

[Event "Titled Tuesday Blitz October 18 Late 2022"]
[White "Prydun, Andriy"]
[Black "Papayan, Oleg"]
[WhiteFideId "14145898"]
[BlackFideId "4193911"]
[WhiteElo "2163"]
[BlackElo "2153"]
[Result "1-0"]
[Round "11"]
[TimeControl "180+1"]
[Date "2022.10.19"]
[WhiteClock "0:00:18"]
[BlackClock "0:00:40"]

1. e4 {[%clk 0:02:57]}  e5 {[%clk 0:02:59]} 2. Nf3 {[%clk 0:02:55]}  Nc6 {[%clk 0:02:59]} 3. Nc3 {[%clk 0:02:55]}  Nf6 {[%clk 0:02:59]} 4. d4 {[%clk 0:02:56]}  exd4 {[%clk 0:02:59]} 5. Nxd4 {[%clk 0:02:56]}  Bb4 {[%clk 0:02:59]} 6. Nxc6 {[%clk 0:02:56]}  bxc6 {[%clk 0:02:53]} 7. Bd3 {[%clk 0:02:56]}  O-O {[%clk 0:02:52]} 8. O-O {[%clk 0:02:55]}  d5 {[%clk 0:02:52]} 9. exd5 {[%clk 0:02:56]}  cxd5 {[%clk 0:02:53]} 10. Bg5 {[%clk 0:02:55]}  c6 {[%clk 0:02:54]} 11. Qf3 {[%clk 0:02:55]}  Rb8 {[%clk 0:02:54]} 12. a3 {[%clk 0:02:31]}  Bd6 {[%clk 0:02:51]} 13. b4 {[%clk 0:02:24]}  Be5 {[%clk 0:02:51]} 14. Na4 {[%clk 0:02:03]}  h6 {[%clk 0:02:38]} 15. Bh4 {[%clk 0:02:01]}  Bxa1 {[%clk 0:02:38]} 16. Rxa1 {[%clk 0:02:00]}  a5 {[%clk 0:02:20]} 17. c3 {[%clk 0:01:21]}  axb4 {[%clk 0:02:18]} 18. cxb4 {[%clk 0:01:18]}  Ra8 {[%clk 0:02:18]} 19. Nc5 {[%clk 0:01:17]}  Qd6 {[%clk 0:02:13]} 20. Bg3 {[%clk 0:00:59]}  Qe7 {[%clk 0:02:12]} 21. Bh4 {[%clk 0:00:51]}  Re8 {[%clk 0:02:08]} 22. h3 {[%clk 0:00:50]}  Qe5 {[%clk 0:02:04]} 23. Ra2 {[%clk 0:00:44]}  Ne4 {[%clk 0:01:48]} 24. Re2 {[%clk 0:00:27]}  Rxa3 {[%clk 0:01:39]} 25. Bg3 {[%clk 0:00:27]}  Qa1+ {[%clk 0:01:26]} 26. Kh2 {[%clk 0:00:25]}  Qf6 {[%clk 0:00:59]} 27. Nxe4 {[%clk 0:00:24]}  Qxf3 {[%clk 0:00:53]} 28. Nf6+ {[%clk 0:00:21]}  gxf6 {[%clk 0:00:52]} 29. Rxe8+ {[%clk 0:00:21]}  Kg7 {[%clk 0:00:52]} 30. gxf3 {[%clk 0:00:22]}  Rxd3 {[%clk 0:00:50]} 31. Rxc8 {[%clk 0:00:21]}  Rxf3 {[%clk 0:00:51]} 32. Rxc6 {[%clk 0:00:21]}  Rb3 {[%clk 0:00:48]} 33. Bd6 {[%clk 0:00:20]}  d4 {[%clk 0:00:44]} 34. Rc4 {[%clk 0:00:20]}  d3 {[%clk 0:00:44]} 35. Rd4 {[%clk 0:00:20]}  f5 {[%clk 0:00:45]} 36. Kg3 {[%clk 0:00:20]}  d2+ {[%clk 0:00:45]} 37. Kf4 {[%clk 0:00:20]}  Kf6 {[%clk 0:00:43]} 38. Rxd2 {[%clk 0:00:19]}  Rxh3 {[%clk 0:00:44]} 39. Rb2 {[%clk 0:00:18]}  Ke6 {[%clk 0:00:42]} 40. Bf8 {[%clk 0:00:18]}  Rh4+ {[%clk 0:00:39]} 41. Kg3 {[%clk 0:00:18]}  Rg4+ {[%clk 0:00:39]} 42. Kh3 {[%clk 0:00:18]}  h5 {[%clk 0:00:39]} 43. b5 {[%clk 0:00:18]}  Kd7 {[%clk 0:00:40]} 44. b6 {[%clk 0:00:18]}  Kc8 {[%clk 0:00:40]} 45. b7+ {[%clk 0:00:18]} 1-0


[Site "https://www.chess.com"]

[Event "Titled Tuesday Blitz October 18 Late 2022"]
[White "Radovic, Janko"]
[Black "Sernecki, Franciszek"]
[WhiteFideId "911518"]
[BlackFideId "1169297"]
[WhiteElo "2318"]
[BlackElo "2209"]
[Result "0-1"]
[Round "11"]
[TimeControl "180+1"]
[Date "2022.10.18"]
[WhiteClock "0:00:16"]
[BlackClock "0:01:11"]

1. Nf3 {[%clk 0:03:00]}  c5 {[%clk 0:02:59]} 2. c4 {[%clk 0:03:01]}  Nc6 {[%clk 0:02:59]} 3. g3 {[%clk 0:03:01]}  g6 {[%clk 0:02:59]} 4. Bg2 {[%clk 0:03:02]}  Bg7 {[%clk 0:03:00]} 5. O-O {[%clk 0:03:02]}  e5 {[%clk 0:03:01]} 6. Nc3 {[%clk 0:03:01]}  d6 {[%clk 0:03:01]} 7. a3 {[%clk 0:03:01]}  Nge7 {[%clk 0:03:01]} 8. b4 {[%clk 0:03:02]}  O-O {[%clk 0:02:59]} 9. bxc5 {[%clk 0:02:59]}  dxc5 {[%clk 0:03:00]} 10. Rb1 {[%clk 0:02:58]}  b6 {[%clk 0:03:00]} 11. d3 {[%clk 0:02:58]}  h6 {[%clk 0:02:59]} 12. Nd2 {[%clk 0:02:53]}  Be6 {[%clk 0:02:58]} 13. Bb2 {[%clk 0:02:51]}  f5 {[%clk 0:02:58]} 14. a4 {[%clk 0:02:47]}  Qd7 {[%clk 0:02:57]} 15. Ba1 {[%clk 0:02:37]}  Rad8 {[%clk 0:02:57]} 16. Nb3 {[%clk 0:02:35]}  a5 {[%clk 0:02:54]} 17. Nd2 {[%clk 0:02:28]}  Nb4 {[%clk 0:02:54]} 18. Qb3 {[%clk 0:02:23]}  e4 {[%clk 0:02:47]} 19. Rfd1 {[%clk 0:02:10]}  exd3 {[%clk 0:02:43]} 20. exd3 {[%clk 0:02:11]}  Qxd3 {[%clk 0:02:44]} 21. Re1 {[%clk 0:01:09]}  Qxd2 {[%clk 0:02:07]} 22. Rxe6 {[%clk 0:01:09]}  Rd3 {[%clk 0:02:02]} 23. Rxe7 {[%clk 0:01:00]}  Bxc3 {[%clk 0:01:58]} 24. Bxc3 {[%clk 0:00:47]}  Rxc3 {[%clk 0:01:56]} 25. Qd1 {[%clk 0:00:45]}  Qxd1+ {[%clk 0:01:55]} 26. Rxd1 {[%clk 0:00:44]}  Rf7 {[%clk 0:01:54]} 27. Re6 {[%clk 0:00:38]}  Kg7 {[%clk 0:01:54]} 28. Rdd6 {[%clk 0:00:37]}  Rc1+ {[%clk 0:01:49]} 29. Bf1 {[%clk 0:00:35]}  g5 {[%clk 0:01:50]} 30. Rxh6 {[%clk 0:00:33]}  g4 {[%clk 0:01:49]} 31. Rxb6 {[%clk 0:00:32]}  Re7 {[%clk 0:01:38]} 32. Rbe6 {[%clk 0:00:26]}  Rxe6 {[%clk 0:01:32]} 33. Rxe6 {[%clk 0:00:26]}  Ra1 {[%clk 0:01:32]} 34. Re5 {[%clk 0:00:25]}  Kf6 {[%clk 0:01:29]} 35. Rxc5 {[%clk 0:00:25]}  Rxa4 {[%clk 0:01:30]} 36. Kg2 {[%clk 0:00:24]}  Ra2 {[%clk 0:01:25]} 37. Rb5 {[%clk 0:00:23]}  Ke6 {[%clk 0:01:22]} 38. c5 {[%clk 0:00:23]}  Kd5 {[%clk 0:01:21]} 39. c6+ {[%clk 0:00:23]}  Kxc6 {[%clk 0:01:22]} 40. Rxf5 {[%clk 0:00:23]}  a4 {[%clk 0:01:22]} 41. Rf4 {[%clk 0:00:23]}  Nd5 {[%clk 0:01:16]} 42. Rxg4 {[%clk 0:00:21]}  Ne3+ {[%clk 0:01:16]} 43. Kf3 {[%clk 0:00:19]}  Nxg4 {[%clk 0:01:17]} 44. Kxg4 {[%clk 0:00:20]}  Rxf2 {[%clk 0:01:17]} 45. Bc4 {[%clk 0:00:19]}  Rxh2 {[%clk 0:01:15]} 46. Kf5 {[%clk 0:00:17]}  a3 {[%clk 0:01:14]} 47. g4 {[%clk 0:00:17]}  Kc5 {[%clk 0:01:12]} 48. Bf7 {[%clk 0:00:16]}  Rf2+ {[%clk 0:01:11]} 0-1


[Site "https://www.chess.com"]